[Event "NJSK 2021 Meisjes C"]
[Site "Almelo, Netherlands"]
[Date "2021.08.01"]
[Round "1.2"]
[White "Maris, Lauri"]
[Black "Jorritsma, Eli Alia"]
[Result "1-0"]
[TimeControl "90min/40moves + 30sec/move"]
[WhiteElo "1669"]
[BlackElo "1050"]

1. e4 {[%clk 01:30:58]} {[%emt 00:00:02]} c6 {[%clk 01:30:54]} {[%emt
00:00:06]} 2. d4 {[%clk 01:31:17]} {[%emt 00:00:11]} d5 {[%clk 01:31:18]}
{[%emt 00:00:05]} 3. exd5 {[%clk 01:31:25]} {[%emt 00:00:22]} cxd5 {[%clk
01:31:41]} {[%emt 00:00:07]} 4. c3 {[%clk 01:31:37]} {[%emt 00:00:18]} Bf5
{[%clk 01:31:59]} {[%emt 00:00:12]} 5. Bf4 {[%clk 01:31:10]} {[%emt 00:00:57]}
e6 {[%clk 01:32:16]} {[%emt 00:00:13]} 6. Bxb8 {[%clk 01:30:57]} {[%emt
00:00:44]} Rxb8 {[%clk 01:32:27]} {[%emt 00:00:18]} 7. Bb5+ {[%clk 01:31:06]}
{[%emt 00:00:22]} Ke7 {[%clk 01:32:15]} {[%emt 00:00:41]} 8. Nf3 {[%clk
01:30:34]} {[%emt 00:01:01]} Qb6 {[%clk 01:30:39]} {[%emt 00:02:08]} 9. Qb3
{[%clk 01:28:53]} {[%emt 00:02:10]} a6 {[%clk 01:30:28]} {[%emt 00:00:41]} 10.
Be2 {[%clk 01:26:07]} {[%emt 00:03:14]} Qxb3 {[%clk 01:30:40]} {[%emt
00:00:21]} 11. axb3 {[%clk 01:26:29]} {[%emt 00:00:08]} Nf6 {[%clk 01:29:43]}
{[%emt 00:01:26]} 12. O-O {[%clk 01:25:30]} {[%emt 00:01:29]} g6 {[%clk
01:28:33]} {[%emt 00:01:40]} 13. Nbd2 {[%clk 01:23:40]} {[%emt 00:02:20]} Bg7
{[%clk 01:28:32]} {[%emt 00:00:30]} 14. Ne5 {[%clk 01:23:29]} {[%emt 00:00:42]}
Rhd8 {[%clk 01:26:20]} {[%emt 00:02:42]} 15. g4 {[%clk 01:17:14]} {[%emt
00:06:46]} Be4 {[%clk 01:24:19]} {[%emt 00:02:30]} 16. f3 {[%clk 01:16:56]}
{[%emt 00:00:47]} Bh6 {[%clk 01:22:52]} {[%emt 00:01:58]} 17. fxe4 {[%clk
01:16:05]} {[%emt 00:01:21]} Bxd2 {[%clk 01:23:03]} {[%emt 00:00:18]} 18. exd5
{[%clk 01:15:59]} {[%emt 00:00:36]} Nxd5 {[%clk 01:22:34]} {[%emt 00:01:00]} 19.
Rxf7+ {[%clk 01:14:48]} {[%emt 00:02:15]} Kd6 {[%clk 01:20:14]} {[%emt
00:02:17]} 20. Nc4+ {[%clk 01:14:58]} {[%emt 00:00:20]} Kc6 {[%clk 01:20:19]}
{[%emt 00:00:25]} 21. Nxd2 {[%clk 01:15:16]} {[%emt 00:00:12]} h5 {[%clk
01:19:50]} {[%emt 00:00:58]} 22. Nc4 {[%clk 01:12:33]} {[%emt 00:03:14]} hxg4
{[%clk 01:18:14]} {[%emt 00:02:06]} 23. Bxg4 {[%clk 01:11:33]} {[%emt
00:01:30]} Nc7 {[%clk 01:16:31]} {[%emt 00:02:12]} 24. Raf1 {[%clk 01:08:27]}
{[%emt 00:03:36]} b5 {[%clk 01:15:02]} {[%emt 00:02:00]} 25. Bf3+ {[%clk
01:08:13]} {[%emt 00:00:44]} Nd5 {[%clk 01:15:17]} {[%emt 00:00:15]} 26. Bxd5+
{[%clk 01:08:17]} {[%emt 00:00:26]} Kxd5 {[%clk 01:15:08]} {[%emt 00:00:39]} 27.
Ne5 {[%clk 01:06:34]} {[%emt 00:02:13]} Rbc8 {[%clk 01:12:37]} {[%emt
00:03:00]} 28. Rd7+ {[%clk 01:05:44]} {[%emt 00:01:20]} Rxd7 {[%clk 01:12:42]}
{[%emt 00:00:26]} 29. Nxd7 {[%clk 01:06:05]} {[%emt 00:00:09]} Kd6 {[%clk
01:12:31]} {[%emt 00:00:40]} 30. Ne5 {[%clk 01:05:42]} {[%emt 00:00:54]} Rc7
{[%clk 01:11:44]} {[%emt 00:01:17]} 31. Rf7 {[%clk 01:05:15]} {[%emt 00:00:57]}
Rxf7 {[%clk 01:11:58]} {[%emt 00:00:16]} 32. Nxf7+ {[%clk 01:05:42]} {[%emt
00:00:03]} Kd5 {[%clk 01:12:15]} {[%emt 00:00:13]} 33. Ng5 {[%clk 01:04:55]}
{[%emt 00:01:16]} a5 {[%clk 01:11:46]} {[%emt 00:00:59]} 34. Kf2 {[%clk
01:05:11]} {[%emt 00:00:15]} e5 {[%clk 01:11:56]} {[%emt 00:00:19]} 35. Ke3
{[%clk 01:04:24]} {[%emt 00:01:18]} exd4+ {[%clk 01:11:47]} {[%emt 00:00:39]}
36. cxd4 {[%clk 01:04:36]} {[%emt 00:00:18]} Kd6 {[%clk 01:11:53]} {[%emt
00:00:24]} 37. Ke4 {[%clk 01:04:00]} {[%emt 00:01:06]} b4 {[%clk 01:11:51]}
{[%emt 00:00:32]} 38. Nf7+ {[%clk 01:03:56]} {[%emt 00:00:35]} Ke6 {[%clk
01:12:07]} {[%emt 00:00:13]} 39. Ne5 {[%clk 01:04:17]} {[%emt 00:00:08]} g5
{[%clk 01:12:13]} {[%emt 00:00:25]} 40. Nc6 {[%clk 01:04:25]} {[%emt 00:00:23]}
Kd6 {[%clk 01:12:19]} {[%emt 00:00:24]} 41. Nxa5 {[%clk 01:04:43]} {[%emt
00:00:11]} Kd7 {[%clk 01:12:21]} {[%emt 00:00:27]} 42. Ke5 {[%clk 01:04:53]}
{[%emt 00:00:21]} Ke7 {[%clk 01:12:36]} {[%emt 00:00:15]} 43. d5 {[%clk
01:05:19]} {[%emt 00:00:04]} Kd7 {[%clk 01:12:56]} {[%emt 00:00:10]} 44. d6
{[%clk 01:05:35]} {[%emt 00:00:13]} Ke8 {[%clk 01:13:08]} {[%emt 00:00:18]} 45.
Ke6 {[%clk 01:05:52]} {[%emt 00:00:14]} Kd8 {[%clk 01:13:29]} {[%emt 00:00:08]}
46. d7 {[%clk 01:06:13]} {[%emt 00:00:10]} g4 {[%clk 01:13:52]} {[%emt
00:00:07]} 47. Kd6 {[%clk 01:06:07]} {[%emt 00:00:36]} g3 {[%clk 01:14:13]}
{[%emt 00:00:10]} 48. Nc6# {[%clk 01:06:28]} {[%emt 00:00:08]} Ke8 {[%clk
01:14:10]} {[%emt 00:00:46]} 1-0